[Event "Queens Festival Europe 2022"]
[Site "Tornelo"]
[Date "2022.06.19"]
[Round "6.4"]
[White "Ismayil, Malak"]
[Black "Head, Louise"]
[Result "1-0"]
[ECO "B17"]
[WhiteElo "2001"]
[BlackElo "2025"]
[Annotator "NA RC"]
[PlyCount "107"]
[EventDate "2022.06.19"]
[EventType "swiss"]
[EventCountry "NET"]
[SourceTitle "playchess.com"]
[Source "ChessBase"]
[SourceQuality "1"]
[TimeControl "180+2"]

1. e4 {[%emt 0:00:02]} c6 {[%emt 0:00:04]} 2. d4 {[%emt 0:00:03]} d5 {[%emt 0:00:01]} 3. Nc3 {[%emt 0:00:02]} dxe4 {[%emt 0:00:02]} 4. Nxe4 {[%emt 0:00:01]} Nd7 {[%emt 0:00:02]} 5. Nf3 {[%emt 0:00:03]} Ngf6 {[%emt 0:00:02]} 6. Nxf6+ {[%emt 0:00:06]} Nxf6 {[%emt 0:00:02]} 7. h3 {[%emt 0:00:02]} Bf5 {[%emt 0:00:03]} 8. Bf4 {[%emt 0:00:03]} e6 {[%emt 0:00:02]} 9. Bd3 {[%emt 0:00:14]} Bxd3 {[%emt 0:00:03]} 10. Qxd3 {[%emt 0:00:02]} Be7 {[%emt 0:00:09]} 11. O-O {[%emt 0:00:11]} O-O {[%emt 0:00:02]} 12. c3 {[%emt 0:00:05]} c5 {[%emt 0:00:05]} 13. Rad1 {[%emt 0:00:04]} cxd4 {[%emt 0:00:05]} 14. Nxd4 {[%emt 0:00:02]} a6 {[%emt 0:00:10]} 15. Qf3 {[%emt 0:00:03]} Qa5 {[%emt 0:00:04]} 16. Qxb7 {[%emt 0:00:08]} Nd5 {[%emt 0:00:10]} 17. Nc6 {[%emt 0:00:04]} Qc5 {[%emt 0:00:15]} 18. b4 {[%emt 0:00:35]} Qc4 {[%emt 0:00:25]} 19. Rd4 {[%emt 0:00:20]} Qxc3 {[%emt 0:00:05]} 20. Rc1 {[%emt 0:00:07]} Qb2 {[%emt 0:00:25]} 21. Rxd5 {[%emt 0:00:26]} exd5 {[%emt 0:00:12]} 22. Nxe7+ {[%emt 0:00:03]} Kh8 {[%emt 0:00:02]} 23. Nxd5 {[%emt 0:00:18]} Qxa2 {[%emt 0:00:07]} 24. Ne3 {[%emt 0:00:08]} Qd2 {[%emt 0:00:16]} 25. Rd1 {[%emt 0:00:03]} Qe2 {[%emt 0:00:04]} 26. Bg3 {[%emt 0:00:13]} Rae8 {[%emt 0:00:06]} 27. Rd7 {[%emt 0:00:03]} Qa2 {[%emt 0:00:10]} 28. Bd6 {[%emt 0:00:03]} Rg8 {[%emt 0:00:03]} 29. Rxf7 {[%emt 0:00:02]} h6 {[%emt 0:00:08]} 30. Bc5 {[%emt 0:00:03]} Rb8 {[%emt 0:00:06]} 31. Qf3 {[%emt 0:00:02]} Rbd8 {[%emt 0:00:09]} 32. Qh5 {[%emt 0:00:02]} Qe6 {[%emt 0:00:10]} 33. Rf3 {[%emt 0:00:09]} Ra8 {[%emt 0:00:14]} 34. Bd4 {[%emt 0:00:03]} Kh7 {[%emt 0:00:01]} 35. Nf5 {[%emt 0:00:03]} a5 {[%emt 0:00:04]} 36. b5 {[%emt 0:00:10]} Raf8 {[%emt 0:00:03]} 37. Qg4 {[%emt 0:00:02]} Rxf5 {[%emt 0:00:01]} 38. Qxf5+ {[%emt 0:00:02]} Qxf5 {[%emt 0:00:01]} 39. Rxf5 {[%emt 0:00:01]} Rb8 {[%emt 0:00:02]} 40. b6 {[%emt 0:00:02]} Kg6 {[%emt 0:00:01]} 41. Rxa5 {[%emt 0:00:01]} Rb7 {[%emt 0:00:02]} 42. Ra7 {[%emt 0:00:02]} Rb8 {[%emt 0:00:01]} 43. b7 {[%emt 0:00:01]} Kf5 {[%emt 0:00:01]} 44. f4 {[%emt 0:00:01]} g5 {[%emt 0:00:03]} 45. Be5 {[%emt 0:00:02]} Rd8 {[%emt 0:00:01]} 46. b8=Q {[%emt 0:00:03]} Rxb8 {[%emt 0:00:02]} 47. Bxb8 {[%emt 0:00:02]} gxf4 {[%emt 0:00:01]} 48. Rf7+ {[%emt 0:00:01]} Kg5 {[%emt 0:00:02]} 49. Rxf4 {[%emt 0:00:02]} Kh5 {[%emt 0:00:01]} 50. g4+ {[%emt 0:00:02]} Kg6 {[%emt 0:00:01]} 51. Kg2 {[%emt 0:00:02]} Kg5 {[%emt 0:00:02]} 52. Kg3 {[%emt 0:00:02]} h5 {[%emt 0:00:01]} 53. Rf5+ {[%emt 0:00:01]} Kg6 {[%emt 0:00:01]} 54. Rxh5 {[%emt 0:00:02]} 1-0

[Event "Queens Festival Europe 2022"]
[Site "Tornelo"]
[Date "2022.06.19"]
[Round "6.4"]
[White "Bordin, Silvia"]
[Black "Can, Isil"]
[Result "1-0"]
[ECO "C47"]
[WhiteElo "1991"]
[BlackElo "1901"]
[Annotator "NA RC"]
[PlyCount "77"]
[EventDate "2022.06.19"]
[EventType "swiss"]
[EventCountry "NET"]
[SourceTitle "playchess.com"]
[Source "ChessBase"]
[SourceQuality "1"]
[TimeControl "180+2"]

1. e4 {[%emt 0:00:02]} e5 {[%emt 0:00:05]} 2. Nf3 {[%emt 0:00:02]} Nc6 {[%emt 0:00:02]} 3. d4 {[%emt 0:00:01]} exd4 {[%emt 0:00:01]} 4. Nxd4 {[%emt 0:00:01]} Nf6 {[%emt 0:00:06]} 5. Nc3 {[%emt 0:00:02]} Bb4 {[%emt 0:00:24]} 6. Nxc6 {[%emt 0:00:04]} bxc6 {[%emt 0:00:09]} 7. Bd3 {[%emt 0:00:01]} d5 {[%emt 0:00:02]} 8. exd5 {[%emt 0:00:02]} cxd5 {[%emt 0:00:02]} 9. O-O {[%emt 0:00:01]} O-O {[%emt 0:00:01]} 10. Bg5 {[%emt 0:00:02]} Be7 {[%emt 0:00:03]} 11. Re1 {[%emt 0:00:10]} c6 {[%emt 0:00:01]} 12. Qf3 {[%emt 0:00:05]} Be6 {[%emt 0:00:02]} 13. h3 {[%emt 0:00:05]} Rb8 {[%emt 0:00:02]} 14. Rab1 {[%emt 0:00:05]} Re8 {[%emt 0:00:20]} 15. Ne2 {[%emt 0:00:02]} Nd7 {[%emt 0:00:03]} 16. Bxe7 {[%emt 0:00:04]} Qxe7 {[%emt 0:00:01]} 17. Nd4 {[%emt 0:00:03]} Qd6 {[%emt 0:00:05]} 18. Qh5 {[%emt 0:00:16]} g6 {[%emt 0:00:10]} 19. Qf3 {[%emt 0:00:02]} Ne5 {[%emt 0:00:04]} 20. Qg3 {[%emt 0:00:05]} Bd7 {[%emt 0:00:09]} 21. b3 {[%emt 0:00:14]} c5 {[%emt 0:00:09]} 22. Nf3 {[%emt 0:00:05]} Nxf3+ {[%emt 0:00:03]} 23. Qxf3 {[%emt 0:00:01]} Bc6 {[%emt 0:00:08]} 24. Qg4 {[%emt 0:00:05]} Bd7 {[%emt 0:00:24]} 25. Qf3 {[%emt 0:00:03]} Bc6 {[%emt 0:00:03]} 26. Qg4 {[%emt 0:00:04]} Re7 {[%emt 0:00:16]} 27. h4 {[%emt 0:00:08]} Rbe8 {[%emt 0:00:10]} 28. Rxe7 {[%emt 0:00:02]} Qxe7 {[%emt 0:00:01]} 29. h5 {[%emt 0:00:05]} Qd7 {[%emt 0:00:23]} 30. Qg3 {[%emt 0:00:08]} d4 {[%emt 0:00:16]} 31. hxg6 {[%emt 0:00:02]} hxg6 {[%emt 0:00:12]} 32. b4 {[%emt 0:00:05]} cxb4 {[%emt 0:00:06]} 33. Rxb4 {[%emt 0:00:03]} Qe7 {[%emt 0:00:02]} 34. Rb1 {[%emt 0:00:06]} Qe6 {[%emt 0:00:02]} 35. a3 {[%emt 0:00:08]} Bd5 {[%emt 0:00:01]} 36. Rb8 {[%emt 0:00:15]} Bc4 {[%emt 0:00:03]} 37. Rxe8+ {[%emt 0:00:02]} Qxe8 {[%emt 0:00:01]} 38. Bxc4 {[%emt 0:00:02]} Qe1+ {[%emt 0:00:02]} 39. Kh2 {[%emt 0:00:02]} 1-0

[Event "Queens Festival Europe 2022"]
[Site "Tornelo"]
[Date "2022.06.19"]
[Round "6.4"]
[White "Omeri, Eklea"]
[Black "Stadlinger, Lea"]
[Result "1/2-1/2"]
[ECO "D41"]
[WhiteElo "1525"]
[BlackElo "1723"]
[Annotator "NA RC"]
[PlyCount "57"]
[EventDate "2022.06.19"]
[EventType "swiss"]
[EventCountry "NET"]
[SourceTitle "playchess.com"]
[Source "ChessBase"]
[SourceQuality "1"]
[TimeControl "180+2"]

1. d4 {[%emt 0:00:02]} d5 {[%emt 0:00:05]} 2. c4 {[%emt 0:00:02]} e6 {[%emt 0:00:01]} 3. Nc3 {[%emt 0:00:01]} Nf6 {[%emt 0:00:07]} 4. Nf3 {[%emt 0:00:02]} c5 {[%emt 0:00:13]} 5. cxd5 {[%emt 0:00:04]} Nxd5 {[%emt 0:00:02]} 6. Nxd5 {[%emt 0:00:03]} Qxd5 {[%emt 0:00:06]} 7. e3 {[%emt 0:00:09]} Nc6 {[%emt 0:00:08]} 8. Bb5 {[%emt 0:00:07]} Bd7 {[%emt 0:00:03]} 9. Bxc6 {[%emt 0:00:02]} Bxc6 {[%emt 0:00:02]} 10. O-O {[%emt 0:00:06]} O-O-O {[%emt 0:00:11]} 11. Bd2 {[%emt 0:00:23]} Qd7 {[%emt 0:00:08]} 12. Bc3 {[%emt 0:00:04]} f6 {[%emt 0:00:10]} 13. dxc5 {[%emt 0:00:06]} Qxd1 {[%emt 0:00:05]} 14. Raxd1 {[%emt 0:00:02]} Bxc5 {[%emt 0:00:08]} 15. Nd4 {[%emt 0:00:08]} Bxd4 {[%emt 0:00:24]} 16. Bxd4 {[%emt 0:00:03]} b6 {[%emt 0:00:02]} 17. a3 {[%emt 0:00:05]} e5 {[%emt 0:00:03]} 18. Bc3 {[%emt 0:00:01]} Ba4 {[%emt 0:00:05]} 19. Rc1 {[%emt 0:00:04]} Kb7 {[%emt 0:00:04]} 20. Bb4 {[%emt 0:00:03]} Rd3 {[%emt 0:00:10]} 21. Rc3 {[%emt 0:00:09]} Rhd8 {[%emt 0:00:04]} 22. Rxd3 {[%emt 0:00:08]} Rxd3 {[%emt 0:00:03]} 23. Bc3 {[%emt 0:00:02]} Rd1 {[%emt 0:00:08]} 24. Rxd1 {[%emt 0:00:03]} Bxd1 {[%emt 0:00:02]} 25. Kf1 {[%emt 0:00:02]} Bb3 {[%emt 0:00:04]} 26. Ke1 {[%emt 0:00:02]} Bd5 {[%emt 0:00:07]} 27. g3 {[%emt 0:00:03]} Kc6 {[%emt 0:00:05]} 28. f4 {[%emt 0:00:04]} exf4 {[%emt 0:00:03]} 29. exf4 {[%emt 0:00:02]} 1/2-1/2

[Event "Queens Festival Europe 2022"]
[Site "Tornelo"]
[Date "2022.06.19"]
[Round "6.5"]
[White "Kordzadze, Nino"]
[Black "Kanyamarala, Trisha"]
[Result "1-0"]
[ECO "A07"]
[WhiteElo "2043"]
[BlackElo "2127"]
[Annotator "NA RC"]
[PlyCount "105"]
[EventDate "2022.06.19"]
[EventType "swiss"]
[EventCountry "NET"]
[SourceTitle "playchess.com"]
[Source "ChessBase"]
[SourceQuality "1"]
[TimeControl "180+2"]

1. g3 {[%emt 0:00:02]} d5 {[%emt 0:00:12]} 2. Bg2 {[%emt 0:00:11]} Nf6 {[%emt 0:00:01]} 3. Nf3 {[%emt 0:00:11]} b5 {[%emt 0:00:02]} 4. O-O {[%emt 0:00:03]} e6 {[%emt 0:00:06]} 5. b3 {[%emt 0:00:04]} Bb7 {[%emt 0:00:02]} 6. Bb2 {[%emt 0:00:01]} Be7 {[%emt 0:00:03]} 7. d4 {[%emt 0:00:38]} Nbd7 {[%emt 0:00:02]} 8. Nbd2 {[%emt 0:00:10]} c5 {[%emt 0:00:06]} 9. e3 {[%emt 0:00:03]} c4 {[%emt 0:00:06]} 10. c3 {[%emt 0:00:12]} a5 {[%emt 0:00:06]} 11. a4 {[%emt 0:00:05]} b4 {[%emt 0:00:52]} 12. bxc4 {[%emt 0:00:39]} Ba6 {[%emt 0:00:13]} 13. cxb4 {[%emt 0:00:11]} axb4 {[%emt 0:00:04]} 14. Ne5 {[%emt 0:00:20]} Nxe5 {[%emt 0:00:49]} 15. dxe5 {[%emt 0:00:01]} Nd7 {[%emt 0:00:06]} 16. Qg4 {[%emt 0:00:03]} O-O {[%emt 0:00:17]} 17. Rfc1 {[%emt 0:00:20]} Nc5 {[%emt 0:00:06]} 18. cxd5 {[%emt 0:00:12]} Nd3 {[%emt 0:00:10]} 19. Bd4 {[%emt 0:00:06]} exd5 {[%emt 0:00:09]} 20. Rc6 {[%emt 0:00:03]} Bb7 {[%emt 0:00:04]} 21. Rc2 {[%emt 0:00:01]} Rc8 {[%emt 0:00:04]} 22. Rxc8 {[%emt 0:00:03]} Bxc8 {[%emt 0:00:01]} 23. Qe2 {[%emt 0:00:01]} Nc5 {[%emt 0:00:03]} 24. Qb5 {[%emt 0:00:03]} Ba6 {[%emt 0:00:02]} 25. Qc6 {[%emt 0:00:02]} Bb7 {[%emt 0:00:04]} 26. Qb5 {[%emt 0:00:03]} Ba8 {[%emt 0:00:01]} 27. Bxc5 {[%emt 0:00:02]} Bxc5 {[%emt 0:00:03]} 28. Qxc5 {[%emt 0:00:02]} Qd7 {[%emt 0:00:01]} 29. Qxb4 {[%emt 0:00:01]} Rc8 {[%emt 0:00:02]} 30. Nf3 {[%emt 0:00:02]} Qc6 {[%emt 0:00:01]} 31. Nd4 {[%emt 0:00:02]} Qa6 {[%emt 0:00:03]} 32. Rb1 {[%emt 0:00:01]} h6 {[%emt 0:00:01]} 33. Qb5 {[%emt 0:00:01]} Qa7 {[%emt 0:00:02]} 34. a5 {[%emt 0:00:02]} Qe7 {[%emt 0:00:02]} 35. a6 {[%emt 0:00:03]} Qxe5 {[%emt 0:00:01]} 36. Qb6 {[%emt 0:00:01]} Qe7 {[%emt 0:00:04]} 37. a7 {[%emt 0:00:02]} Qd7 {[%emt 0:00:02]} 38. Nb5 {[%emt 0:00:06]} d4 {[%emt 0:00:03]} 39. Bxa8 {[%emt 0:00:03]} Rxa8 {[%emt 0:00:02]} 40. Qb8+ {[%emt 0:00:02]} Rxb8 {[%emt 0:00:01]} 41. axb8=Q+ {[%emt 0:00:02]} Kh7 {[%emt 0:00:01]} 42. Nxd4 {[%emt 0:00:01]} Qd5 {[%emt 0:00:01]} 43. Qb3 {[%emt 0:00:02]} Qe4 {[%emt 0:00:02]} 44. Qb2 {[%emt 0:00:01]} g6 {[%emt 0:00:02]} 45. Qc2 {[%emt 0:00:02]} Qd5 {[%emt 0:00:02]} 46. Rb6 {[%emt 0:00:01]} h5 {[%emt 0:00:02]} 47. Rc6 {[%emt 0:00:02]} Qa5 {[%emt 0:00:01]} 48. Rc7 {[%emt 0:00:02]} Qa1+ {[%emt 0:00:01]} 49. Kg2 {[%emt 0:00:01]} Qa8+ {[%emt 0:00:02]} 50. Nc6 {[%emt 0:00:02]} Qa3 {[%emt 0:00:03]} 51. Rxf7+ {[%emt 0:00:02]} Kh6 {[%emt 0:00:01]} 52. Rf6 {[%emt 0:00:02]} Qa8 {[%emt 0:00:03]} 53. Qxg6# {[%emt 0:00:01]} 1-0

[Event "Queens Festival Europe 2022"]
[Site "Tornelo"]
[Date "2022.06.19"]
[Round "6.5"]
[White "Grimaldi, Angela Flavia"]
[Black "Stastna, Martina"]
[Result "0-1"]
[ECO "C54"]
[WhiteElo "1995"]
[BlackElo "1912"]
[Annotator "NA RC"]
[PlyCount "72"]
[EventDate "2022.06.19"]
[EventType "swiss"]
[EventCountry "NET"]
[SourceTitle "playchess.com"]
[Source "ChessBase"]
[SourceQuality "1"]
[TimeControl "180+2"]

1. e4 {[%emt 0:00:02]} e5 {[%emt 0:00:04]} 2. Nf3 {[%emt 0:00:03]} Nc6 {[%emt 0:00:02]} 3. Bc4 {[%emt 0:00:01]} Nf6 {[%emt 0:00:04]} 4. d3 {[%emt 0:00:03]} Bc5 {[%emt 0:00:03]} 5. c3 {[%emt 0:00:02]} d6 {[%emt 0:00:02]} 6. Nbd2 {[%emt 0:00:07]} Bg4 {[%emt 0:00:14]} 7. h3 {[%emt 0:00:04]} Be6 {[%emt 0:00:08]} 8. O-O {[%emt 0:00:08]} O-O {[%emt 0:00:03]} 9. a4 {[%emt 0:00:10]} a5 {[%emt 0:00:13]} 10. Re1 {[%emt 0:00:33]} Re8 {[%emt 0:00:53]} 11. Nf1 {[%emt 0:00:18]} Bxc4 {[%emt 0:00:09]} 12. dxc4 {[%emt 0:00:00]} Nd7 {[%emt 0:00:03]} 13. Ne3 {[%emt 0:00:28]} Ne7 {[%emt 0:00:11]} 14. Nh4 {[%emt 0:00:18]} Nb6 {[%emt 0:00:09]} 15. b3 {[%emt 0:00:15]} Nd7 {[%emt 0:00:11]} 16. Nhf5 {[%emt 0:00:29]} Nxf5 {[%emt 0:00:04]} 17. Nxf5 {[%emt 0:00:00]} Qf6 {[%emt 0:00:02]} 18. Qf3 {[%emt 0:00:15]} Re6 {[%emt 0:00:19]} 19. h4 {[%emt 0:00:06]} g6 {[%emt 0:00:15]} 20. Nh6+ {[%emt 0:00:04]} Kg7 {[%emt 0:00:02]} 21. Qxf6+ {[%emt 0:00:08]} Rxf6 {[%emt 0:00:01]} 22. Ng4 {[%emt 0:00:04]} Re6 {[%emt 0:00:01]} 23. Be3 {[%emt 0:00:02]} Bxe3 {[%emt 0:00:03]} 24. Rxe3 {[%emt 0:00:00]} Nc5 {[%emt 0:00:02]} 25. Rb1 {[%emt 0:00:05]} Rb8 {[%emt 0:00:07]} 26. Ree1 {[%emt 0:00:03]} Ree8 {[%emt 0:00:04]} 27. Ne3 {[%emt 0:00:01]} c6 {[%emt 0:00:07]} 28. f3 {[%emt 0:00:03]} Nd3 {[%emt 0:00:04]} 29. Red1 {[%emt 0:00:02]} Nf4 {[%emt 0:00:05]} 30. Rxd6 {[%emt 0:00:02]} Ne2+ {[%emt 0:00:03]} 31. Kf2 {[%emt 0:00:03]} Nxc3 {[%emt 0:00:02]} 32. Rc1 {[%emt 0:00:02]} Na2 {[%emt 0:00:01]} 33. Rcd1 {[%emt 0:00:03]} Nb4 {[%emt 0:00:02]} 34. Rd7 {[%emt 0:00:02]} Kf8 {[%emt 0:00:04]} 35. Ng4 {[%emt 0:00:04]} Re7 {[%emt 0:00:02]} 36. Rd8+ {[%emt 0:00:02]} Re8 {[%emt 0:00:01]} 0-1

[Event "Queens Festival Europe 2022"]
[Site "Tornelo"]
[Date "2022.06.19"]
[Round "6.5"]
[White "Vukosavljevic, Tatjana"]
[Black "van den Brink, Nienke"]
[Result "1/2-1/2"]
[ECO "A89"]
[WhiteElo "1758"]
[BlackElo "1771"]
[Annotator "NA RC"]
[PlyCount "137"]
[EventDate "2022.06.19"]
[EventType "swiss"]
[EventCountry "NET"]
[SourceTitle "playchess.com"]
[Source "ChessBase"]
[SourceQuality "1"]
[TimeControl "180+2"]

1. Nf3 {[%emt 0:00:02]} f5 {[%emt 0:00:06]} 2. g3 {[%emt 0:00:03]} Nf6 {[%emt 0:00:02]} 3. Bg2 {[%emt 0:00:02]} d6 {[%emt 0:00:01]} 4. d4 {[%emt 0:00:02]} g6 {[%emt 0:00:03]} 5. O-O {[%emt 0:00:03]} Bg7 {[%emt 0:00:02]} 6. c4 {[%emt 0:00:03]} O-O {[%emt 0:00:02]} 7. Nc3 {[%emt 0:00:02]} Nc6 {[%emt 0:00:01]} 8. Re1 {[%emt 0:00:08]} Ne4 {[%emt 0:00:07]} 9. e3 {[%emt 0:00:09]} Na5 {[%emt 0:00:15]} 10. Nxe4 {[%emt 0:00:22]} fxe4 {[%emt 0:00:02]} 11. Nd2 {[%emt 0:00:06]} e5 {[%emt 0:00:10]} 12. dxe5 {[%emt 0:00:26]} Bxe5 {[%emt 0:00:05]} 13. Nxe4 {[%emt 0:00:08]} Be6 {[%emt 0:00:17]} 14. c5 {[%emt 0:00:13]} d5 {[%emt 0:00:16]} 15. Nc3 {[%emt 0:00:10]} Qf6 {[%emt 0:00:05]} 16. Rf1 {[%emt 0:00:07]} c6 {[%emt 0:00:10]} 17. Bd2 {[%emt 0:00:15]} Nc4 {[%emt 0:00:04]} 18. Ne2 {[%emt 0:01:03]} Nxb2 {[%emt 0:00:17]} 19. Qb3 {[%emt 0:00:05]} Nc4 {[%emt 0:00:04]} 20. Rad1 {[%emt 0:00:03]} Nxd2 {[%emt 0:00:04]} 21. Rxd2 {[%emt 0:00:02]} Qf7 {[%emt 0:00:09]} 22. Nd4 {[%emt 0:00:02]} Bxd4 {[%emt 0:00:04]} 23. exd4 {[%emt 0:00:03]} Rae8 {[%emt 0:00:09]} 24. Rb2 {[%emt 0:00:02]} Re7 {[%emt 0:00:03]} 25. a4 {[%emt 0:00:03]} Bf5 {[%emt 0:00:03]} 26. a5 {[%emt 0:00:02]} Be4 {[%emt 0:00:10]} 27. Bxe4 {[%emt 0:00:03]} dxe4 {[%emt 0:00:06]} 28. Qxf7+ {[%emt 0:00:03]} Rfxf7 {[%emt 0:00:03]} 29. Rfb1 {[%emt 0:00:00]} Kg7 {[%emt 0:00:03]} 30. Re1 {[%emt 0:00:02]} Rf8 {[%emt 0:00:08]} 31. Re3 {[%emt 0:00:01]} Rd8 {[%emt 0:00:03]} 32. Rb4 {[%emt 0:00:03]} Kf6 {[%emt 0:00:04]} 33. Kg2 {[%emt 0:00:02]} Kf5 {[%emt 0:00:02]} 34. h4 {[%emt 0:00:02]} Red7 {[%emt 0:00:02]} 35. f3 {[%emt 0:00:04]} Rxd4 {[%emt 0:00:07]} 36. Rxb7 {[%emt 0:00:03]} Rd2+ {[%emt 0:00:05]} 37. Kh3 {[%emt 0:00:03]} exf3 {[%emt 0:00:05]} 38. Rxf3+ {[%emt 0:00:02]} Ke4 {[%emt 0:00:04]} 39. Rf1 {[%emt 0:00:02]} Rc2 {[%emt 0:00:07]} 40. Rxa7 {[%emt 0:00:02]} Rdd2 {[%emt 0:00:06]} 41. Rh1 {[%emt 0:00:02]} Rxc5 {[%emt 0:00:05]} 42. a6 {[%emt 0:00:02]} Ra2 {[%emt 0:00:02]} 43. Re7+ {[%emt 0:00:02]} Re5 {[%emt 0:00:04]} 44. a7 {[%emt 0:00:00]} Rxe7 {[%emt 0:00:02]} 45. Re1+ {[%emt 0:00:03]} Kd5 {[%emt 0:00:04]} 46. Rxe7 {[%emt 0:00:02]} Kd6 {[%emt 0:00:02]} 47. Rxh7 {[%emt 0:00:02]} c5 {[%emt 0:00:03]} 48. Kg4 {[%emt 0:00:00]} Kc6 {[%emt 0:00:01]} 49. Kg5 {[%emt 0:00:02]} Kb6 {[%emt 0:00:03]} 50. Kxg6 {[%emt 0:00:02]} c4 {[%emt 0:00:06]} 51. h5 {[%emt 0:00:03]} c3 {[%emt 0:00:01]} 52. Rh8 {[%emt 0:00:02]} Kxa7 {[%emt 0:00:04]} 53. Rc8 {[%emt 0:00:01]} Ra6+ {[%emt 0:00:03]} 54. Kg5 {[%emt 0:00:03]} Ra3 {[%emt 0:00:02]} 55. h6 {[%emt 0:00:02]} Kb7 {[%emt 0:00:01]} 56. Rc4 {[%emt 0:00:03]} Ra5+ {[%emt 0:00:02]} 57. Kg4 {[%emt 0:00:02]} Ra6 {[%emt 0:00:03]} 58. Rxc3 {[%emt 0:00:02]} Rxh6 {[%emt 0:00:02]} 59. Rb3+ {[%emt 0:00:01]} Kc7 {[%emt 0:00:02]} 60. Rc3+ {[%emt 0:00:02]} Kd7 {[%emt 0:00:02]} 61. Rd3+ {[%emt 0:00:02]} Ke7 {[%emt 0:00:01]} 62. Re3+ {[%emt 0:00:02]} Kf7 {[%emt 0:00:02]} 63. Rf3+ {[%emt 0:00:02]} Kg7 {[%emt 0:00:01]} 64. Kf4 {[%emt 0:00:01]} Rf6+ {[%emt 0:00:02]} 65. Ke3 {[%emt 0:00:02]} Re6+ {[%emt 0:00:02]} 66. Kf2 {[%emt 0:00:02]} Rg6 {[%emt 0:00:03]} 67. g4 {[%emt 0:00:00]} Rxg4 {[%emt 0:00:01]} 68. Rg3 {[%emt 0:00:01]} Rxg3 {[%emt 0:00:02]} 69. Kxg3 {[%emt 0:00:04]} 1/2-1/2

[Event "Queens Festival Europe 2022"]
[Site "Tornelo"]
[Date "2022.06.19"]
[Round "6.5"]
[White "Hariharan, Shambavi"]
[Black "Pyun, Lindsay"]
[Result "1-0"]
[ECO "D10"]
[WhiteElo "1517"]
[BlackElo "1526"]
[Annotator "NA RC"]
[PlyCount "109"]
[EventDate "2022.06.19"]
[EventType "swiss"]
[EventCountry "NET"]
[SourceTitle "playchess.com"]
[Source "ChessBase"]
[SourceQuality "1"]
[TimeControl "180+2"]

1. d4 {[%emt 0:00:02]} d5 {[%emt 0:00:05]} 2. Bf4 {[%emt 0:00:02]} Nf6 {[%emt 0:00:02]} 3. e3 {[%emt 0:00:01]} c6 {[%emt 0:00:02]} 4. c4 {[%emt 0:00:02]} Bf5 {[%emt 0:00:05]} 5. Nc3 {[%emt 0:00:02]} e6 {[%emt 0:00:01]} 6. Qb3 {[%emt 0:00:02]} Qb6 {[%emt 0:00:07]} 7. c5 {[%emt 0:00:02]} Qxb3 {[%emt 0:00:05]} 8. axb3 {[%emt 0:00:01]} Be7 {[%emt 0:00:02]} 9. b4 {[%emt 0:00:07]} Nh5 {[%emt 0:00:05]} 10. Bg3 {[%emt 0:00:11]} Nxg3 {[%emt 0:00:02]} 11. hxg3 {[%emt 0:00:00]} O-O {[%emt 0:00:10]} 12. Nf3 {[%emt 0:00:03]} Nd7 {[%emt 0:00:03]} 13. b5 {[%emt 0:00:06]} f6 {[%emt 0:00:19]} 14. Be2 {[%emt 0:00:03]} e5 {[%emt 0:00:04]} 15. O-O {[%emt 0:00:06]} e4 {[%emt 0:00:13]} 16. Nd2 {[%emt 0:00:02]} Rfb8 {[%emt 0:00:09]} 17. b4 {[%emt 0:00:16]} Nf8 {[%emt 0:00:06]} 18. bxc6 {[%emt 0:00:10]} bxc6 {[%emt 0:00:03]} 19. b5 {[%emt 0:00:03]} Bd7 {[%emt 0:00:10]} 20. Rfb1 {[%emt 0:00:13]} cxb5 {[%emt 0:00:37]} 21. Bxb5 {[%emt 0:00:04]} Bxb5 {[%emt 0:00:03]} 22. Nxb5 {[%emt 0:00:02]} a6 {[%emt 0:00:02]} 23. Nc7 {[%emt 0:00:04]} Rxb1+ {[%emt 0:00:06]} 24. Rxb1 {[%emt 0:00:03]} Ra7 {[%emt 0:00:02]} 25. Nxd5 {[%emt 0:00:02]} Bd8 {[%emt 0:00:08]} 26. Ra1 {[%emt 0:00:13]} a5 {[%emt 0:00:02]} 27. Nxe4 {[%emt 0:00:05]} Ne6 {[%emt 0:00:07]} 28. Ndc3 {[%emt 0:00:11]} Nc7 {[%emt 0:00:04]} 29. Nd6 {[%emt 0:00:03]} Kf8 {[%emt 0:00:14]} 30. Nc4 {[%emt 0:00:23]} Ne6 {[%emt 0:00:06]} 31. Nb5 {[%emt 0:00:06]} Ra6 {[%emt 0:00:04]} 32. Nbd6 {[%emt 0:00:03]} a4 {[%emt 0:00:06]} 33. Kf1 {[%emt 0:00:11]} Bc7 {[%emt 0:00:04]} 34. Ke2 {[%emt 0:00:04]} Bxd6 {[%emt 0:00:03]} 35. Nxd6 {[%emt 0:00:06]} Nc7 {[%emt 0:00:02]} 36. Nc4 {[%emt 0:00:04]} Nb5 {[%emt 0:00:04]} 37. Kd3 {[%emt 0:00:04]} a3 {[%emt 0:00:01]} 38. Kc2 {[%emt 0:00:09]} Ra4 {[%emt 0:00:02]} 39. Kb3 {[%emt 0:00:04]} Ra7 {[%emt 0:00:05]} 40. Nxa3 {[%emt 0:00:09]} Nxa3 {[%emt 0:00:03]} 41. Rxa3 {[%emt 0:00:02]} Rb7+ {[%emt 0:00:00]} 42. Kc2 {[%emt 0:00:01]} Ke7 {[%emt 0:00:02]} 43. Rc3 {[%emt 0:00:04]} Ke6 {[%emt 0:00:03]} 44. e4 {[%emt 0:00:05]} f5 {[%emt 0:00:04]} 45. f3 {[%emt 0:00:06]} fxe4 {[%emt 0:00:02]} 46. fxe4 {[%emt 0:00:01]} Rd7 {[%emt 0:00:06]} 47. d5+ {[%emt 0:00:03]} Ke5 {[%emt 0:00:02]} 48. c6 {[%emt 0:00:05]} Rc7 {[%emt 0:00:02]} 49. Kd3 {[%emt 0:00:02]} g5 {[%emt 0:00:03]} 50. Ke3 {[%emt 0:00:04]} h5 {[%emt 0:00:02]} 51. Rb3 {[%emt 0:00:02]} Kd6 {[%emt 0:00:03]} 52. Kd4 {[%emt 0:00:04]} Ra7 {[%emt 0:00:03]} 53. e5+ {[%emt 0:00:04]} Kc7 {[%emt 0:00:01]} 54. Rb7+ {[%emt 0:00:05]} Rxb7 {[%emt 0:00:01]} 55. cxb7 {[%emt 0:00:01]} 1-0